Cogmind - Beta 15 @@@ ROGUE MODE // 2025.09.24 @ 21:16:14 Player: luka.null Result: Destroyed by 12-2BF(R) with Subdweller Laser Performance ------------- Evolutions (0) 0 Regions Visited (2) 400 Robots Destroyed (13) 65 Value Destroyed (395) 395 Prototype IDs (0) 0 Alien Tech Used (0) 0 Bonus (0) 0 TOTAL SCORE: 860 Bonus ------- None Cogmind --------- Core Integrity 0/250 Matter 300/300 Energy 200/200 System Corruption 3% Temperature Cool (6) Movement Rolling (130) Ox2 Location -10/Subcaves Parts ------- > --- POWER (1) -------- Subdweller Power Source > --- PROPULSION (2) --- Subdweller Monowheel Subdweller Monowheel > --- UTILITY (2) ------ Disposable Heat Sink Huge Storage Unit > --- WEAPON (2) ------- Subdweller Laser Subdweller Laser > --- INVENTORY (25) --- Ion Engine Subdweller Power Source Light Treads Cargo Storage Unit Core Shielding Medium Laser Light Assault Rifle Barrage Gun Peak State ------------ > --- POWER ------------ Subdweller Power Source > --- PROPULSION ------- Subdweller Monowheel Subdweller Monowheel > --- UTILITY ---------- Disposable Heat Sink Huge Storage Unit > --- WEAPON ----------- Subdweller Laser Subdweller Laser > --- INVENTORY -------- Ion Engine Subdweller Power Source Light Treads Cargo Storage Unit Core Shielding Medium Laser Light Assault Rifle Barrage Gun [Rating: 14] Favorites ----------- Power Light Ion Engine Engine Light Ion Engine Propulsion Light Treads Treads Light Treads Wheel Subdweller Monowheel Utility Huge Storage Unit Device Sensor Array Storage Huge Storage Unit Weapon Assault Rifle Energy Gun Medium Laser Ballistic Gun Assault Rifle Build | -11 -10 -10 ------- Run | Yrd Mat Sub Slots Evolved . | . . . Power . | . . . Propulsion . | . . . Utility . | . . . Weapon . | . . . Parts Attached 17 | 6 4 7 Power 2 | 1 . 1 Engine 2 | 1 . 1 Core . | . . . Reactor . | . . . Propulsion 5 | 2 1 2 Treads 3 | 2 1 . Leg . | . . . Wheel 2 | . . 2 Hover . | . . . Flight . | . . . Utility 4 | 1 2 1 Device 2 | . 1 1 Storage 2 | 1 1 . Processor . | . . . Hackware . | . . . Protection . | . . . Artifact . | . . . Weapon 6 | 2 1 3 Energy Gun 4 | 1 1 2 Energy Cannon . | . . . Ballistic Gun 2 | 1 . 1 Ballistic Cannon . | . . . Launcher . | . . . Special Weapon . | . . . Impact Weapon . | . . . Slashing Weapon . | . . . Piercing Weapon . | . . . Special Melee Weapon . | . . . Unidentified Prototypes . | . . . Parts Lost 7 | . 2 5 Power 1 | . . 1 Propulsion 3 | . 1 2 Utility 1 | . . 1 Weapon 2 | . 1 1 Highest Loss Streak 3 | . 2 3 To Critical Strikes . | . . . Average Backups 5 | 1 5 5 Power 1 | . 1 1 Propulsion 1 | . 1 1 Utility 1 | . . 2 Weapon 1 | . 1 1 Tool/Special . | . . . Unused Backups 6 | . . 6 Power 2 | . . 2 Propulsion 1 | . . 1 Utility 2 | . . 2 Weapon 1 | . . 1 Tool/Special . | . . . Average Slot Usage (%) 95 | . 97 90 Engine 13 | . 14 12 Treads 23 | . 27 14 Wheel 2 | . . 9 Device 11 | . 12 10 Storage 14 | . 14 14 Energy Gun 15 | . 13 18 Ballistic Gun 12 | . 14 9 Peak Build Rating 14 | 6 8 14 Average Rating 7 | 4 7 8 On Entrance 4 | . 6 7 Naked Turns . | . . . Heaviest Build 94 | 12 89 94 Greatest Support 40 | 40 40 40 Greatest Overweight (x) 28 | . 4 28 Average Overweight (x) 1 | . 1 2 Largest Inventory Capacity 25 | 8 25 25 Average Capacity 21 | 7 20 25 Most Carried 9 | 2 8 9 Average Carried 5 | 1 5 6 Final Capacity 25 | 8 25 25 Final Carried 9 | 2 6 9 Class Distribution -------------------- 91% | Mutant 8% | Scavenger-Mutant Dominant Class ---------------- Mutant | -10/Materials Mutant | -10/Subcaves Resources | -11 -10 -10 ----------- Run | Yrd Mat Sub Matter Collected 528 | 211 222 95 Remotely . | . . . Salvage Created 430 | . 348 82 Parts 29 | . 21 8 Haulers Intercepted . | . . . Recyclers Shooed . | . . . Parts Field Recycled . | . . . Retrieved Matter . | . . . Parts Self-Destructed 1 | . . 1 Prevented . | . . . Kills | -11 -10 -10 ------- Run | Yrd Mat Sub Combat Hostiles Destroyed 13 | . 11 2 Guns 13 | . 11 2 Classes Destroyed 3 | . 2 1 Swarmer 3 | . 3 . Grunt 8 | . 8 . Subdweller 2 | . . 2 Best Kill Streak 4 | . 4 1 Combat Bots Only 4 | . 4 1 Max Kills in Single Turn 1 | . 1 1 Gunslinging . | . . . Exploded . | . . . Melee . | . . . Uniques/NPCs Destroyed . | . . . Combat | -11 -10 -10 -------- Run | Yrd Mat Sub Hostile Shots Fired 124 | . 71 53 Missed 41 | . 22 19 Hits 83 | . 49 34 Projectile 83 | . 49 34 Critical Strikes 2 | . 1 1 Damage Taken 1233 | . 540 693 Core 262 | . 77 185 Absorbed by Shields . | . . . Core Remaining (%) 100 | 100 . . Volleys Fired 56 | . 38 18 Largest 2 | . 2 2 Hottest 85 | . 85 70 Shots Fired 106 | . 71 35 Gun 106 | . 71 35 Cannon . | . . . Launcher . | . . . Special . | . . . Kinetic 55 | . 38 17 Thermal 51 | . 33 18 Explosive . | . . . Electromagnetic . | . . . Robot Hit Streak 8 | . 6 8 Robot Miss Streak 3 | . 3 2 Penetration Max . | . . . Secondary Targets 1 | . 1 . Max Gunslinging Chain 1 | . 1 . Shots Hit Robots 69 | . 42 27 Core Hits 26 | . 21 5 Critical Kills . | . . . Critical Parts Destroyed . | . . . Critical Strikes 3 | . 2 1 Burn 3 | . 2 1 Melee Attacks . | . . . Impact . | . . . Slashing . | . . . Piercing . | . . . Sneak Attacks . | . . . Combat Hostiles . | . . . Follow-up Attacks . | . . . Damage Inflicted 836 | . 560 276 Guns 836 | . 560 276 Cannons . | . . . Explosions . | . . . Melee . | . . . Ramming . | . . . Kinetic 396 | . 280 116 Thermal 440 | . 280 160 Explosive . | . . . Electromagnetic . | . . . Impact . | . . . Slashing . | . . . Piercing . | . . . Highest Corruption 3 | . 3 3 Average Corruption 2 | . 2 3 Corruption Purged . | . . . Corruption Blocked . | . . . Effects 34 | . 22 12 Message Errors 13 | . 6 7 Matter Fused 4 | . 2 2 Heat Flow Errors 2 | . 2 . Energy Discharges 4 | . 2 2 Parts Fused 1 | . 1 . Data Loss (minor) 4 | . 4 . Misfires 3 | . 3 . Alerts 2 | . 2 . Weapon Failures 1 | . . 1 Overload Shots . | . . . Overflow Damage . | . . . Projectiles . | . . . Explosions . | . . . Melee . | . . . Knockbacks . | . . . Impact . | . . . Kinetic . | . . . Secondary . | . . . Self-Inflicted Damage . | . . . Shots . | . . . Rammed . | . . . Targets Rammed . | . . . Kicked . | . . . Crushed . | . . . Highest Temperature 210 | . 210 1 Average Temperature 64 | . 66 1 Received Heat Transfer 447 | . 255 192 Siege Activations . | . . . Martial Activations . | . . . Shielding Activations . | . . . Robots Disrupted . | . . . Combat Hostiles . | . . . Robots Corrupted . | . . . Combat Hostiles . | . . . Parts Fried . | . . . Impact Corruptions . | . . . Robots Melted . | . . . Combat Hostiles . | . . . Parts Melted 1 | . 1 . Heat Transferred 1443 | . 888 555 Parts Sabotaged . | . . . Parts Stolen . | . . . Parts Stripped . | . . . Power Chain Reactions . | . . . Alert | -11 -10 -10 ------- Run | Yrd Mat Sub Maximum Alert Level . | . . . Low Security (%) 100 | 100 100 . Level 1 . | . . . Level 2 . | . . . Level 3 . | . . . Level 4 . | . . . Level 5 . | . . . High Security . | . . . Max Security . | . . . Peak Influence 101 | . 101 . Initial . | . . . Average 23 | . 24 . Influence Increases 300 | . 300 . Destroy 0b10 Robot/C 220 | . 220 . Destroy Leader 50 | . 50 . Lose Combat Pursuer 30 | . 30 . Influence Decreases 300 | . 289 11 Entered New Map 6 | . . 6 Time Decay 274 | . 269 5 Lost Part 20 | . 20 . Squads Dispatched 3 | . 3 . Investigation 1 | . 1 . Extermination . | . . . Reinforcement 2 | . 2 . Assault . | . . . Garrison . | . . . Intercept . | . . . Searches Triggered . | . . . Construction Impeded . | . . . Haulers Reinforced . | . . . Active Scanning Responses . | . . . Cargo Convoy Interrupts . | . . . Stealth | -11 -10 -10 --------- Run | Yrd Mat Sub Distress Signals 2 | . 2 . Communications Jammed . | . . . Distress Signals . | . . . Times Spotted 26 | . 20 6 Peak Tracking Total 8 | . 8 3 Tactical Retreats 2 | . 2 . Traps | -11 -10 -10 ------- Run | Yrd Mat Sub Traps Triggered 2 | . 2 . Indirectly . | . . . Trap Hack Attempts . | . . . Triggered . | . . . Disarmed . | . . . Reprogrammed . | . . . Reused . | . . . Traps Extracted . | . . . Installed . | . . . Triggered . | . . . Machines | -11 -10 -10 ---------- Run | Yrd Mat Sub Machines Disabled . | . . . Max in Single Turn . | . . . Machines Repaired . | . . . Machines Dismantled . | . . . Machines Sabotaged . | . . . Overloaded Fab Kills . | . . . Hacking | -11 -10 -10 --------- Run | Yrd Mat Sub Machines Accessed 2 | . 2 . Terminals 2 | . 2 . Fabricators . | . . . Repair Stations . | . . . Recycling Units . | . . . Scanalyzers . | . . . Garrison Access . | . . . Total Hacks 6 | . 6 . Successful 1 | . 1 . Failed 5 | . 5 . Catastrophic . | . . . Database Lockouts . | . . . Manual 6 | . 6 . Terminals 6 | . 6 . Fabricators . | . . . Repair Stations . | . . . Recycling Units . | . . . Scanalyzers . | . . . Garrison Access . | . . . Terminal Hacks . | . . . Fabricator Hacks . | . . . Repair Station Hacks . | . . . Recycling Unit Hacks . | . . . Scanalyzer . | . . . Garrison Access Hacks . | . . . Unauthorized Hacks 1 | . 1 . Terminals 1 | . 1 . Botnet 1 | . 1 . Fabricators . | . . . Repair Stations . | . . . Recycling Units . | . . . Scanalyzers . | . . . Garrison Access . | . . . Data Cores Recovered . | . . . Used . | . . . Hacking Detections 1 | . 1 . Full Trace Events 1 | . 1 . Feedback Events . | . . . Feedback Blocked . | . . . Robot Schematics Acquired . | . . . Robots Built . | . . . Authchips . | . . . Time . | . . . Total Robot Build Rating . | . . . Part Schematics Acquired . | . . . Parts Built . | . . . Authchips . | . . . Time . | . . . Total Part Build Rating . | . . . Parts Repaired . | . . . Time . | . . . Parts Recycled . | . . . Recycled Matter . | . . . Retrieved Matter . | . . . Retrieved Components . | . . . Parts Scanalyzed . | . . . Part Schematics Acquired . | . . . Parts Damaged . | . . . Bothacking | -11 -10 -10 ------------ Run | Yrd Mat Sub Used RIF Installer . | . . . Robots Hacked . | . . . Non-combat . | . . . Combat . | . . . Robot Hacks Applied . | . . . Relay Couplers Released . | . . . Fabnet Peak Effective % . | . . . Robots Rewired . | . . . Allies Hacked . | . . . Hacks Repelled . | . . . Allies | -11 -10 -10 -------- Run | Yrd Mat Sub Total Allies . | . . . Largest Group . | . . . Highest-Rated Group . | . . . Highest-Rated Ally . | . . . Total Orders . | . . . Ally Attacks . | . . . Total Damage . | . . . Kills . | . . . Allies Corrupted . | . . . Allies Melted . | . . . Intel | -11 -10 -10 ------- Run | Yrd Mat Sub Active Infowar (turns) 1445 | . 1214 231 Sensors 1445 | . 1214 231 Robot Analysis Total . | . . . Derelict Logs Recovered . | . . . Drone Launches . | . . . Drone Recoveries . | . . . Exploration | -11 -10 -10 ------------- Run | Yrd Mat Sub Turns Passed 1981 | 84 1373 524 Spaces Moved 680 | 51 425 204 Core 11 | 8 . 3 Treads 543 | 43 425 75 Legs . | . . . Wheels 126 | . . 126 Hover . | . . . Flight . | . . . Fastest Speed 50 | 50 160 130 Average Speed 233 | 142 251 220 Slowest Speed 1450 | 160 480 1450 Overloaded Moves . | . . . Propulsion Burnouts . | . . . Robots Hopped . | . . . Potential Cave-ins . | . . . Cave-ins Triggered . | . . . Exploration Rate (%) 24 | 4 54 14 Regions Visited 2 Branch Regions 1 Pre-discovered Areas . | . . . Known Exits Taken . | . . . Unknown Exits Taken 2 | 1 1 . Scrap Searched . | . . . Spaces Dug . | . . . Terrain Destroyed . | . . . Melee . | . . . Projectile . | . . . AOE . | . . . Terrain Rammed . | . . . Walls Destroyed . | . . . Machines Disabled . | . . . Actions | -11 -10 -10 --------- Run | Yrd Mat Sub Total 967 | 60 664 243 Wait 203 | . 192 11 Move 678 | 50 424 204 Hop . | . . . Pick Up 10 | 4 4 2 Fast Attach 9 | 4 1 4 Attach 5 | 2 2 1 Detach . | . . . Swap 5 | . 2 3 Drop 1 | . 1 . Fire 56 | . 38 18 Melee . | . . . Ram . | . . . Kick . | . . . Crush . | . . . Escape Stasis . | . . . Rewire . | . . . Trap . | . . . Miscellaneous . | . . . Route ------- -11/Scrapyard -10/Materials (discovered 3 exits: [*Mat] / [*Min] / [*Sub]) -10/Subcaves History --------- Turn | Location | Event 37 | -11/Scrapyard | Discovered new exit (range 16) 85 | -11/Scrapyard | Entered Materials 217 | -10/Materials | Discovered new exit (range 13) 301 | -10/Materials | Build established: Mutant 360 | -10/Materials | Discovered new exit (range 15) 1406 | -10/Materials | Discovered new exit (range 10) 1458 | -10/Materials | Entered Subcaves 1459 | -10/Subcaves | Approached by a straggling Scientist 1712 | -10/Subcaves | Core integrity fell below 50% 1735 | -10/Subcaves | Lost 3 parts (1n1u1w) 1750 | -10/Subcaves | Core integrity fell below 20% 1869 | -10/Subcaves | Shifting Twisted Machinery released Barrage Gun 1883 | -10/Subcaves | Shifting Twisted Machinery released Shrapnel Trap 1982 | -10/Subcaves | Destroyed by 12-2BF(R) with Subdweller Laser Last Messages --------------- 01805_ Acquired Sub. Monowheel. 01812_ Subatomizers dissect the Sub. Laser. 01814_ Acquired Sub. Power Source. 01822_ Subatomizers dissect the Disposable Heat Sink. 01822_ Acquired 47 matter. 01823_ System corrupted: Matter fused (-8). 01823_ Acquired 8 matter. 01827_ Acquired 20 matter. 01831_ Acquired Disposable Heat Sink. 01834_ Acquired Sub. Power Source. 01836_ Acquired 7 matter. 01837_ Subatomizers dissect the Disposable Heat Sink. 01838_ Acquired 13 matter. 01844_ LNZNGMAYTQRD TXSOKMQR4SCZ|#KWET7ZGV5EU 01848_ Subatomizers dissect the Disposable Heat Sink. Barrage Gun falls loose from the Twisted Machinery. 01873_ Subatomizers dissect the Disposable Heat Sink. Shrapnel Trap falls loose from the Twisted Machinery. 01886_ Acquired Barrage Gun. 01966_ =TGEE3LI9ZWAXZGDW#AK65 Map ----- +----------------------------------------------------+ | ????????????? ######???? #??????? | | ???????????????????# #?????????? ??????? | | ???????????????????## ### # ###?????????????????? | | ????????????????????????## ##?????????????????? | | ?????????????????????????# !#####?????????????? | | ?????????????????????????# =% "#?????????????? | | ?????????????????????????# !! ##????????????? | | ?????????????????????????# #????????????? | | ?????????????????????????## ### #????????????? | | ??????????????????????????##??#### ##?##????????? | | ?????????????????????????????#???## ## #????????? | | ???????????????????????????## ????# #####????? | | ???????????????????????????# #???# """ ???? | | ???????????????????????????# ???# """""?"## | | ???????????????????????????# ??## ######?"""# | | ??????????????????????????## ### ##?????""#? | | ??????????????????????????# "#####" #? | | ??????????????????????????# ### " ## #""##" | | ??????????????????????????# #??# """ """" | | ??????????????????????????# #??## """ " | | ?????????????????###??????## #??# ###""" " | | ????????????###### ###?????### ###### #?#"" " | | ???????????## ## #####??# ## ##" "" | | ???????????# #### # ##"" # | | ???????????# R ## ##?&""# | | ??????# ## @ # ## "" | | ??????# #### # ## #???? | | ??????# # #?## ###### #???? | | ????? ### #?## ##????# #???? | | ???""" ??### ### ##????# #???? | | ???""" ?????###### ##????# #??? | | ???""" ??????????###### #????# #?? | | ????####????????????????###????##### #### #? | | ???????????????????????????????????####???#######? | | ?????????????????????????????????????????????????? | | ?????????????????????????????????????????????????? | | ?????????????????????????????????????????????????? | | ?????????????????????????????????????????????????? | | ?????????????????????????????????????????????????? | | ?????????????????????????????????????????????????? | | ?????????????????????????????????????????????????? | | ?????????????????????????????????????????????????? | | ?????????????????????????????????????????????????? | | ?????????????????????????????????????????????????? | | ?????????????????????????????????????????????????? | | ?????????????????????????????????????????????????? | | ?????????????????????????????????????????????????? | | ?????????????????????????????????????????????????? | | | | | +----------------------------------------------------+ Best States ------------- Heat Dissipation 25 Coolant Potential 50 Energy Generation 15 Energy Capacity 200 Matter Stores 300 Matter Capacity 300 Sight Range 16 Robot Scan Range 14 Terrain Scan Density 10 Evasion (%) 40 Recoil Reduction 2 Item Schematics ----------------- None Robot Schematics ------------------ None Fabricated ------------ Nothing Repaired ---------- Nothing Alien Tech Used ----------------- None Achievements -------------- True Hacker Challenges ------------ None Game ------ Seed VoltaicAntimissileMegatreads Manual? 0 Play Time 00:11:23 Cumulative 14.2 hours Start 2025.09.24 @ 21:04:50 End 2025.09.24 @ 21:16:14 Sessions 1 Manual Loads 0 Difficulty Rogue Special Mode None Game No. 13 Rogue 10 Adventurer 3 Explorer 0 Win Type - Total 0 Types 0/0/0/0/0/0/0/0/0/0 Lore% 15 Gallery% 11 Achievement% 13 Wizard Run 0 Options --------- Layout 1 ASCII 0 Keyboard 0 Movement Vi Keybinds 0 Fullscreen 0 Font 20/Terminus Map View 64x48 Zoom Use 0% Tactical HUD 1 Map Filters NONE Filters NONE Steam 1 RUN: f92cd8b5-7c08-4802-aacc-6c38a5a1d82b